[Event "Lliga Catalana DH 2023"]
[Site "Catalonia"]
[Date "2023.02.11"]
[Round "4.7"]
[White "Nadal Fajardo, Ricard"]
[Black "Jimenez Ruano, Adrian"]
[Result "1-0"]
[ECO "D00"]
[WhiteElo "2024"]
[BlackElo "2235"]
[Annotator "TA"]
[PlyCount "137"]
[EventDate "2023.01.24"]
[EventType "team-tourn"]
[EventCountry "ESP"]
[SourceTitle "playchess.com"]
[Source "ChessBase"]
[SourceQuality "1"]
[TimeControl "40/5400+30:1800+30"]

{[%evp 9,137,0,3,-7,-5,0,-2,0,10,-20,22,-26,17,-12,35,-30,-28,-28,-25,-35,-25,-29,-27,-98,-68,-67,-46,-48,-34,-48,-48,-76,-61,-69,-35,-68,-32,-62,-14,-62,-9,-8,0,-31,6,-14,-15,-22,0,0,0,0,0,-14,57,0,0,0,0,4,25,8,8,8,8,0,79,13,28,0,0,0,0,0,0,0,0,0,0,0,172,128,29962,4134,2164,6514,6514,2679,5189,3147,29971,29968,29957,7954,2518,2502,5077,3035,2466,1615,29984,29985,29972,2795,2584,2374,2158,2082,29982,29983,29984,29969,29984,5629,29983,29984,29997,29983,29982,29983,29983,29984,29983,6203,29995,29996,29996,29997,29997,760]} 1. d4 {[%emt 0:00:07]} Nf6 {[%emt 0:01:05]} 2. Bg5 {[%emt 0:00:53]} d5 {[%emt 0:04:42]} 3. e3 {[%emt 0:08:36]} g6 {[%emt 0:05:05]} 4. Bxf6 {[%emt 0:01:14]} exf6 {[%emt 0:00:01]} 5. Nd2 {[%emt 0:04:48]} Bg7 {[%emt 0:00:46]} 6. g3 {[%emt 0:00:50] [#] D00: 1 d4 d5: Unusual lines.} h5 $146 {[%emt 0:04:55]} ({Predecessor:} 6... O-O 7. Bg2 c6 8. Ne2 Be6 9. Nf4 Nd7 10. c4 dxc4 11. Nxe6 fxe6 12. Nxc4 Nb6 13. Qb3 Nxc4 14. Qxc4 {1-0 Andreikin,D (2725)-Vaishali,R (2393) Titled Tuesday intern op 16th Feb blitz 2021 (2)}) 7. h4 {[%emt 0:01:20]} Bg4 {[%emt 0:02:52]} 8. Be2 {[%emt 0:00:30] The position is equal.} Bf5 {[%emt 0:05:18]} 9. Bd3 {[%emt 0:01:20]} Qd7 {[%emt 0:01:38]} 10. Ne2 {[%emt 0:01:51]} (10. Bxf5 $142 Qxf5 11. Ne2) 10... Nc6 {[%emt 0:01:33]} (10... Bxd3 $5 11. cxd3 $8 Na6 $11) 11. a3 {[%emt 0:06:15]} Na5 {[%emt 0:15:51]} (11... Bxd3 $11 {deserves consideration.} 12. cxd3 Ne7) 12. Nb3 {[%emt 0:17:25]} (12. Bxf5 $14 Qxf5 13. c3) 12... Nxb3 $11 {[%emt 0:02:51]} 13. cxb3 {[%emt 0:00:06]} Bg4 {[%emt 0:00:58]} 14. Qc2 {[%emt 0:00:43]} Bf3 {[%emt 0:01:20]} 15. Rh2 {[%emt 0:01:10]} O-O {[%emt 0:01:08]} 16. O-O-O {[%emt 0:00:40]} (16. b4 $11) 16... f5 {[%emt 0:00:45][%cal Oc7c5]} 17. Kb1 {[%emt 0:00:52]} Rac8 {[%emt 0:02:17][%cal Oc7c5]} 18. Rc1 {[%emt 0:00:22]} c6 {[%emt 0:04:46]} 19. Ng1 {[%emt 0:04:42]} Be4 {[%emt 0:00:04]} 20. Bxe4 {[%emt 0:00:28]} dxe4 {[%emt 0:03:17]} 21. Ne2 {[%emt 0:01:01]} Rfd8 {[%emt 0:02:34]} (21... a5 $5 {[%cal Rb7b6]}) 22. Rhh1 {[%emt 0:01:17]} Qe6 {[%emt 0:01:28]} 23. Rhd1 {[%emt 0:04:41]} Qf6 {[%emt 0:00:30]} (23... a5 $15) 24. Rd2 {[%emt 0:02:09]} (24. b4 $11) 24... Kh7 {[%emt 0:02:04]} (24... a5 $15) 25. b4 {[%emt 0:10:46]} Ra8 {[%emt 0:02:36]} 26. Qb3 {[%emt 0:00:50]} Bf8 {[%emt 0:05:05]} 27. Rdc2 {[%emt 0:01:36]} a6 {[%emt 0:11:45]} 28. Nc3 {[%emt 0:04:39][%cal Be2c3,Bc3a4,Ba4c5][%mdl 32]} Kg7 {[%emt 0:00:45]} 29. Na4 {[%emt 0:03:36]} Qe6 {[%emt 0:04:01]} 30. Qc3 {[%emt 0:06:15]} Kg8 {[%emt 0:00:20]} 31. Rd2 {[%emt 0:01:07]} Re8 {[%emt 0:02:36]} ({Better is} 31... Rab8 $11) 32. Rcd1 {[%emt 0:00:36]} (32. Nc5 $14 Qe7 33. d5 cxd5 34. Rxd5) 32... Bg7 {[%emt 0:05:18]} 33. Nc5 {[%emt 0:00:19]} Qe7 {[%emt 0:00:17]} 34. Qb3 {[%emt 0:01:35]} Rad8 {[%emt 0:06:09]} (34... b6 $5 {[%cal Rb6c5]} 35. Na4 Qc7 $11) 35. d5 {[%emt 0:02:50] [#] aiming for d6.} cxd5 {[%emt 0:00:16]} 36. Rxd5 {[%emt 0:00:08]} Rxd5 {[%emt 0:00:26]} 37. Qxd5 {[%emt 0:00:15]} b5 {[%emt 0:00:52]} (37... b6 $11 {keeps the balance.} 38. Na4 f4) 38. Rd2 {[%emt 0:01:44] White is more active.} (38. Nxa6 $2 Qf6 39. Rd2 Qxa6 $19) (38. Qd6 $16) 38... f4 $1 {[%emt 0:00:34]} 39. exf4 {[%emt 0:05:47] And now Re2 would win.} (39. gxf4 {simplifies} Qxh4 40. Qd7 Qe7 41. Nxa6 Qxd7 42. Rxd7 Bf6 43. Kc2) 39... e3 {[%emt 0:00:01]} 40. fxe3 {[%emt 0:00:13]} Qxe3 {[%emt 0:00:06]} 41. Qd3 {[%emt 0:30:55]} Qg1+ {[%emt 0:31:14]} 42. Ka2 {[%emt 0:02:15]} Re3 {[%emt 0:00:44] Inhibits f5.} 43. Qd8+ {[%emt 0:00:35]} Kh7 {[%emt 0:00:00]} 44. Qd5 $36 {[%emt 0:00:49][%mdl 2048] Black is under pressure.} (44. Nxa6 Rxa3+ 45. bxa3 Qa1+ 46. Kb3 Qb1+) 44... Rxg3 $2 {[%emt 0:00:51]} (44... Qc1 $11) 45. Ne4 {[%emt 0:00:32]} ({Worse is} 45. Nxa6 Rh3 $11) 45... Re3 {[%emt 0:00:43][%mdl 8192] [#] Loses the game.} (45... f5 $16 46. Ng5+ (46. Nxg3 Qxg3 47. Qe6 Qxh4 $14) 46... Rxg5 47. hxg5 (47. fxg5 Qe1 $16) 47... Qf1) 46. Ng5+ {[%emt 0:00:13]} Kh6 {[%emt 0:00:24]} 47. Nxf7+ {[%emt 0:00:51]} ({Not} 47. Qxf7 Rxa3+ 48. Kxa3 Qe3+ 49. Qb3 Qxd2 $11) 47... Kh7 {[%emt 0:00:00]} 48. Ng5+ {[%emt 0:00:28]} Kh6 {[%emt 0:00:02]} 49. Qg8 {[%emt 0:01:21][%cal Rg5f7]} Rxa3+ {[%emt 0:00:01]} 50. Kxa3 {[%emt 0:00:21][%cal Rg5f7]} Qa1+ {[%emt 0:00:49]} 51. Qa2 {[%emt 0:00:12]} Qe1 {[%emt 0:00:16]} 52. Rd7 {[%emt 0:01:43]} a5 {[%emt 0:00:19]} 53. bxa5 {[%emt 0:00:29]} Bf8+ {[%emt 0:01:54]} 54. Kb3 {[%emt 0:00:16][%csl Gg5][%cal Rd7h7]} Be7 {[%emt 0:00:47]} 55. Kc2 {[%emt 0:00:46]} Qf2+ {[%emt 0:00:26]} 56. Rd2 {[%emt 0:00:22]} (56. Kd3 $142 Qf1+ 57. Ke4 b4 58. Rxe7 Qe2+ 59. Kd4 Qxe7 60. Qg8 Qg7+ 61. Qxg7+ Kxg7 62. a6) 56... Qc5+ $18 {[%emt 0:00:34]} 57. Kd3 {[%emt 0:00:27] Qg8 would kill now.} Qf5+ {[%emt 0:00:20]} 58. Ne4 {[%emt 0:00:35] Qg8 would be deadly.} Qxf4 {[%emt 0:00:38]} 59. Rf2 {[%emt 0:00:31]} Qc1 {[%emt 0:00:26]} 60. Qb3 {[%emt 0:00:37]} Bxh4 {[%emt 0:00:15]} 61. Qc2 {[%emt 0:00:25]} (61. Rf8 $142 Qc4+ 62. Qxc4 bxc4+ 63. Kxc4 Kg7 64. a6 Kxf8 65. a7 Kg8 66. a8=Q+ Kg7 67. Qe8) 61... Qa1 {[%emt 0:00:41]} 62. Rf7 {[%emt 0:00:35]} Qa2 {[%emt 0:00:26]} 63. Qd2+ {[%emt 0:00:25]} g5 {[%emt 0:00:01]} 64. Rf6+ {[%emt 0:00:23]} Kg7 {[%emt 0:00:03]} 65. Qc3 {[%emt 0:00:30]} Qb1+ {[%emt 0:00:00]} 66. Qc2 {[%emt 0:00:29]} (66. Kd4 $142 Qd1+ 67. Kc5 Qe1 68. Qd4 Qxe4 {[%mdl 64] Remove Defender} 69. Qxe4 Kxf6 70. Qd4+ Kg6 71. a6) 66... Qa2 {[%emt 0:00:50]} 67. Qc7+ {[%emt 0:00:20] White mates.} Kg8 {[%emt 0:00:00]} 68. Rg6+ {[%emt 0:00:35]} Kf8 {[%emt 0:00:01]} 69. Qg7+ {[%emt 0:00:19] Weighted Error Value: White=0.19 (very precise) /Black=0.45} 1-0

[Event "Lliga Catalana DH 2023"]
[Site "Catalonia"]
[Date "2023.02.11"]
[Round "4.8"]
[White "Navarro Perez, Manuel"]
[Black "Vehi Bach, Victor Manuel"]
[Result "0-1"]
[ECO "B23"]
[WhiteElo "2004"]
[BlackElo "2242"]
[Annotator "TA"]
[PlyCount "46"]
[EventDate "2023.01.24"]
[EventType "team-tourn"]
[EventCountry "ESP"]
[SourceTitle "playchess.com"]
[Source "ChessBase"]
[SourceQuality "1"]
[TimeControl "40/5400+30:1800+30"]

{[%evp 10,46,-24,-24,-24,-27,-14,-16,-17,-12,-17,-31,-33,-85,-83,-183,-183,-186,-198,-238,-240,-226,-235,-214,-218,-280,-162,-148,-116,-137,-137,-293,-291,-408,-403,-644,-633,-638,-618]} 1. e4 c5 2. Nc3 a6 3. a4 e6 4. Bc4 Nc6 5. f4 Nge7 6. d3 d5 {B23: Closed Sicilian: Lines without g3.} 7. Ba2 g6 {[%cal Ob7b5]} 8. Nf3 Bg7 {[%cal Ob7b5] The position is equal.} 9. O-O O-O {[%cal Bh8f8,Bf8d8,Bd8d7][%mdl 32]} 10. Qe1 {[#]} b5 $1 {[%cal Bb7b5,Bb5b4][%mdl 32]} 11. f5 (11. Bb1 $15) (11. Ne2 c4) 11... b4 $17 {[#]} (11... gxf5 $6 12. exd5 exd5 13. Qg3 $11 (13. axb5 axb5 14. Qg3 Nb4 $17)) 12. Qh4 $146 ({Predecessor:} 12. Ne2 exf5 13. Qh4 c4 14. exd5 Nxd5 15. Qxc4 Qb6+ 16. Kh1 Na5 17. Qh4 b3 18. cxb3 {0-1 Fryc,M (2196)-Haman,J (2222) CZE-chT2B 1819 2018 (7.5)}) 12... Nxf5 $19 ({Stronger than} 12... bxc3 13. f6 Bh8 14. bxc3 $14 (14. fxe7 Qxe7 15. Qxe7 Nxe7 $15)) 13. Qxd8 Rxd8 ({And not} 13... Nxd8 14. Nxd5 exd5 15. Bxd5 $11 (15. exf5 Bxf5 16. Bxd5 Rc8 $11)) 14. Nxd5 exd5 15. exf5 Bxf5 16. Bg5 {[#]} Rd7 17. Be3 Bxb2 (17... c4 $142 18. dxc4 dxc4 19. Bxc4 Na5) 18. Rab1 d4 19. Bh6 Bc3 20. Ng5 $2 {Now White is beyond hope.} (20. Nh4 $17 Be6 21. Bxe6 fxe6 22. Rf6) 20... Ne5 21. h3 {Dodges Ng4} (21. Nf3 {was called for.} Ng4 22. Bf4) 21... c4 $1 22. Rxf5 (22. Nf3 $142 b3 23. cxb3 Nxf3+ 24. Rxf3 cxd3 25. Rd1) 22... gxf5 23. dxc4 Rd6 {Weighted Error Value: White=0.51/Black=0.10 (very precise)} 0-1

[Event "Lliga Catalana DH 2023"]
[Site "Catalonia"]
[Date "2023.02.11"]
[Round "4.9"]
[White "Gonzalez Escudero, Josep"]
[Black "Prada Villagrasa, Pau Manel"]
[Result "1-0"]
[ECO "A03"]
[WhiteElo "1950"]
[BlackElo "1951"]
[Annotator "TA"]
[PlyCount "77"]
[EventDate "2023.01.24"]
[EventType "team-tourn"]
[EventCountry "ESP"]
[SourceTitle "playchess.com"]
[Source "ChessBase"]
[SourceQuality "1"]
[TimeControl "40/5400+30:1800+30"]

{[%evp 9,77,-8,3,6,11,8,6,4,10,0,1,-1,13,-67,-20,-22,-29,-18,-22,-71,-20,-66,-59,-59,-48,-95,-79,-88,-70,-76,-72,-89,-42,-62,-30,-25,-31,-45,0,0,0,8,237,233,471,157,276,42,52,41,508,480,676,675,848,539,703,672,29980,29981,29993,29977,29977,29978,29977,29978,29955,5527,29993,29994]} 1. f4 {[%emt 0:00:12]} d5 {[%emt 0:00:33]} 2. Nf3 {[%emt 0:00:15]} c5 {[%emt 0:02:12]} 3. e3 {[%emt 0:00:31]} e6 {[%emt 0:01:02]} 4. Be2 {[%emt 0:01:04]} Nf6 {[%emt 0:00:46]} 5. O-O {[%emt 0:01:10]} a6 {[%emt 0:01:54]} 6. b3 {[%emt 0:00:49] A03: Bird's Opening with 1...d5.} Nc6 {[%emt 0:00:36][%cal Bb8c6,Bc6e7,Be7g6][%mdl 32]} 7. Bb2 {[%emt 0:00:54]} Bd6 {[%emt 0:01:23]} 8. Ne5 {[%emt 0:05:13] [#] The position is equal.} Ne7 $146 {[%emt 0:04:27]} ({Predecessor:} 8... Qc7 9. Nxc6 Qxc6 10. d3 Qc7 11. Qe1 Bd7 12. Qg3 Be7 13. Nd2 O-O-O 14. Nf3 Rhg8 {1-0 Pisarek,J (1703)-Wiatrowski,Z (1880) POL-ch U16 Sypniewo 2022 (7)}) 9. c4 {[%emt 0:06:48]} O-O {[%emt 0:03:26]} 10. Bd3 {[%emt 0:06:49]} Ng6 {[%emt 0:05:00]} 11. g4 {[%emt 0:08:31]} (11. Qf3 $11) 11... Bxe5 {[%emt 0:03:52]} (11... dxc4 $15 12. Nxg6 hxg6 13. Bxc4 Bd7) 12. fxe5 $11 {[%emt 0:10:11]} Nd7 {[%emt 0:02:36]} 13. Bxg6 $1 {[%emt 0:02:13]} hxg6 {[%emt 0:00:20]} 14. d4 {[%emt 0:04:21]} (14. cxd5 $11 exd5 15. Qf3) 14... b5 {[%emt 0:13:03]} ({Black should try} 14... dxc4 $17 15. Nc3 b5) 15. cxb5 {[%emt 0:03:18]} (15. cxd5 $11 Bb7 16. Nc3) 15... axb5 $15 {[%emt 0:01:20]} 16. Nd2 {[%emt 0:06:54]} Qg5 {[%emt 0:01:01]} 17. Qe2 {[%emt 0:09:32]} (17. Rf4 $15 {is more appropriate.}) 17... Ba6 {[%emt 0:05:56] aiming for ...b4.} 18. b4 {[%emt 0:00:22]} cxb4 {[%emt 0:02:18]} 19. Rf4 {[%emt 0:01:15]} Nb6 {[%emt 0:00:38]} 20. Nb3 {[%emt 0:00:47]} Nc4 {[%emt 0:01:14]} (20... Na4 $17) 21. Qf2 {[%emt 0:03:38]} Ra7 {[%emt 0:06:05]} 22. h4 {[%emt 0:10:32]} Qe7 {[%emt 0:03:07]} 23. Rf1 {[%emt 0:00:14]} Rfa8 {[%emt 0:15:32]} ({Better is} 23... Nb6 $15) 24. Bc1 $11 {[%emt 0:00:46]} Bc8 {[%emt 0:00:19]} 25. g5 {[%emt 0:02:00] Black should prevent Qg3.} Qe8 $2 {[%emt 0:03:28] [#]} (25... Rxa2 $11 26. Rxf7 Rxf2 27. Rxe7 Rxf1+ 28. Kxf1 Ra2) 26. Qf3 $1 $18 {[%emt 0:02:34]} Rc7 $2 {[%emt 0:01:33]} (26... Rxa2 27. Rxf7 Bd7 28. h5 $18) (26... Qe7 {might work better.} 27. Qg4 Qf8) 27. Rf2 $2 {[%emt 0:01:50]} (27. h5 $18 {and the rest is easy.}) 27... Na5 {[%emt 0:03:51]} (27... Qe7 $16) 28. Bd2 $2 {[%emt 0:02:03]} ({Only move:} 28. Nc5 $18 {And now h5 would win.} Qe7 29. h5 Qxg5+ 30. Rg4 Qxh5 31. Rh2 Qxh2+ 32. Kxh2) 28... Nxb3 $14 {[%emt 0:00:34]} 29. axb3 {[%emt 0:00:12]} Ra3 $2 {[%emt 0:00:33][%mdl 8192]} (29... Qe7 $14) 30. Bxb4 $18 {[%emt 0:01:05]} Rxb3 {[%emt 0:00:04] Black is weak on the dark squares} (30... Raa7 $142 31. Bc5 Rxc5) 31. Bc5 {[%emt 0:00:17]} Rb1+ {[%emt 0:02:01]} 32. Kg2 {[%emt 0:00:24] Black must now prevent Kh2.} b4 {[%emt 0:03:26] [#]} 33. h5 $1 {[%emt 0:01:24] Threatens to win with hxg6.} b3 {[%emt 0:05:59]} 34. hxg6 {[%emt 0:01:38]} b2 {[%emt 0:02:57]} 35. gxf7+ {[%emt 0:04:56]} Rxf7 {[%emt 0:00:08]} 36. Rxf7 {[%emt 0:00:07]} Rg1+ {[%emt 0:00:22]} 37. Kxg1 {[%emt 0:00:12]} b1=Q+ {[%emt 0:00:15]} 38. Kg2 {[%emt 0:00:20]} (38. Kh2 $142 Qf5 39. Rxf5 exf5 40. Qxd5+ Be6 41. Qf3 g6 42. Qh3 Bd5 43. Qh6) 38... Qe4 {[%emt 0:04:45]} 39. Qxe4 {[%emt 0:00:24] Excellently played by Gonzalez Escudero!   Weighted Error Value: White=0.41/Black=0.99} 1-0

[Event "Lliga Catalana DH 2023"]
[Site "Catalonia"]
[Date "2023.02.11"]
[Round "4.9"]
[White "Pang, Khai Jie Ryan"]
[Black "Ventos Navarro, Liberto"]
[Result "1-0"]
[ECO "B06"]
[WhiteElo "1841"]
[BlackElo "1956"]
[Annotator "TA"]
[PlyCount "99"]
[EventDate "2023.01.24"]
[EventType "team-tourn"]
[EventCountry "ESP"]
[SourceTitle "playchess.com"]
[Source "ChessBase"]
[SourceQuality "1"]
[TimeControl "40/5400+30:1800+30"]

{[%evp 9,99,47,55,51,53,50,50,34,95,24,31,17,21,19,16,31,29,16,27,28,40,43,105,35,40,20,47,0,0,0,34,33,50,50,41,9,48,5,5,2,4,3,67,69,100,95,98,90,93,51,111,111,111,111,111,111,111,111,111,111,93,92,212,194,1674,1559,2335,2353,2314,1933,2353,2475,1512,376,488,472,449,416,1308,1341,3637,2319,5114,2993,2363,2133,1989,2052,29968,5513,29976,29976]} 1. e4 g6 2. d4 Bg7 3. Nf3 d6 4. Bc4 a6 5. O-O e6 6. Bb3 {B06: Modern Defence.} Ne7 7. c3 O-O 8. Nbd2 {[#] White is slightly better.} c5 $146 (8... b5 $14) ({Predecessor:} 8... Nd7 9. Re1 h6 10. Nf1 b6 11. Ng3 Bb7 12. Bd2 c5 13. h4 Kh8 14. Qe2 Ng8 {1-0 Gonzalez Vidal,Y (2559)-Shabalov,A (2584) US Masters op 2018 (9)}) 9. Re1 (9. dxc5 $16 {Hoping for Nc4.} dxc5 10. Nc4) 9... cxd4 $11 10. cxd4 d5 11. e5 Nbc6 12. Bc2 f6 13. exf6 Bxf6 14. Nb3 Qd6 15. Bh6 Re8 ({Black should try} 15... Rf7 $14) 16. Qe2 (16. Rc1 $16) 16... Bd7 $14 17. Rad1 (17. Qd2 $5 {[%cal Rh6f4]}) 17... Nf5 18. Bxf5 (18. Bg5 $14 {should be considered.} Bxg5 19. Nxg5) 18... exf5 $11 19. Qd2 Rxe1+ 20. Rxe1 Re8 21. Rxe8+ Bxe8 22. Bf4 Qe7 (22... Qb4 $5 {[%cal Rb4d2]}) 23. Bg5 Bxg5 24. Nxg5 h6 25. Nf3 Kg7 ({Better is} 25... g5 $11) 26. h4 $14 Qe4 27. Nc5 $36 {[%csl LRb7,LRe4][%mdl 2048] White is really pushing.} Qe7 28. Qf4 a5 29. Ne5 Nxe5 (29... g5 $14 30. hxg5 (30. Qxf5 $2 {too greedy.} Nxd4 31. Qg4 Qxc5 $19) 30... hxg5) 30. Qxe5+ $16 Qxe5 31. dxe5 $14 {[%mdl 4096] Endgame KB-KN} b6 32. Ne6+ Kf7 33. Nd4 {White is more active.} f4 34. g4 fxg3 35. f4 {[%cal Bf2f4,Bf4f5][%mdl 32]} g5 36. hxg5 $18 h5 (36... hxg5 37. f5 Kg7) 37. f5 Kg7 38. Kg2 h4 39. Nf3 Bh5 40. Nxh4 d4 41. Kf1 $2 (41. Nf3 Bxf3+ 42. Kxg3 (42. Kxf3 $2 {is the wrong capture.} d3 $19) 42... Be4 43. f6+ Kf7 $19) (41. Kxg3 d3 42. Nf3) 41... d3 {[#] ( -> ...d2)} 42. Ke1 Bg4 43. f6+ Kf7 (43... Kg8 $142 44. Kd2 Bh3 45. Kxd3 g2) 44. g6+ {[%cal Bg5g6,Bg6g7][%mdl 32]} Kg8 45. Kd2 Bh5 46. g7 {[%cal Oh4f5] [#] Threatening mate with Nf5!} Bf7 47. Kxd3 Bxa2 48. Ke3 Bd5 49. Nf5 {Intending Ne7+ and mate.} Be6 50. Nxg3 {Weighted Error Value: White=0.29 (precise) /Black=0.64} 1-0

[Event "Lliga Catalana DH 2023"]
[Site "Catalonia"]
[Date "2023.02.11"]
[Round "4.10"]
[White "Jareno Badenas, Aleix"]
[Black "Volkov, Vladimir."]
[Result "1-0"]
[ECO "A08"]
[WhiteElo "2110"]
[BlackElo "1990"]
[Annotator "TA"]
[PlyCount "41"]
[EventDate "2023.01.24"]
[EventType "team-tourn"]
[EventCountry "ESP"]
[SourceTitle "playchess.com"]
[Source "ChessBase"]
[SourceQuality "1"]
[TimeControl "40/5400+30:1800+30"]

{[%evp 9,41,0,54,21,21,30,67,67,70,66,73,0,96,87,81,66,75,55,50,42,42,47,36,2,17,8,424,421,402,420,477,476,824,816]} 1. Nf3 {[%emt 0:00:03]} Nf6 {[%emt 0:00:07]} 2. g3 {[%emt 0:00:04]} e6 {[%emt 0:00:12]} 3. Bg2 {[%emt 0:00:06]} d5 {[%emt 0:01:07]} 4. O-O {[%emt 0:00:08]} c5 {[%emt 0:03:46]} 5. d3 {[%emt 0:00:06][%cal Bd2d3,Bd3e4,Be4e5][%mdl 32]} Nbd7 {[%emt 0:01:34]} ({Black should play} 5... Be7 $11) 6. Nbd2 {[%emt 0:00:51] A08: King's Indian Attack.} Be7 {[%emt 0:01:35]} 7. e4 {[%emt 0:00:09]} dxe4 {[%emt 0:00:34]} 8. dxe4 {[%emt 0:00:06] White is slightly better.} O-O {[%emt 0:01:07]} 9. e5 {[%emt 0:20:00]} Nd5 {[%emt 0:07:11]} 10. a3 {[%emt 0:03:08]} ({Better is} 10. c4 $16) 10... Qc7 {[%emt 0:04:57]} (10... b5 $11 {remains equal.}) 11. c4 $16 {[%emt 0:03:29]} N5b6 {[%emt 0:00:48] [#]} 12. Re1 $146 {[%emt 0:02:54]} ({Predecessor:} 12. Qe2 Rd8 13. h4 Nf8 14. Re1 Bd7 15. h5 Bc6 16. Ne4 Nbd7 17. Bf4 a6 18. Nc3 {1-0 Valdes Romero,L (2359)-Ustariz,C (2141) Central America-chT 7th 2001 (4)}) 12... Rd8 {[%emt 0:02:24]} 13. Qc2 {[%emt 0:03:50]} Nf8 {[%emt 0:02:31]} 14. h4 {[%emt 0:07:15]} Bd7 {[%emt 0:02:51]} 15. Ne4 {[%emt 0:03:27][%cal Bd2e4,Be4g5,Bg5e6][%mdl 32]} Bc6 {[%emt 0:08:36]} 16. Bf4 {[%emt 0:20:28]} Ng6 {[%emt 0:16:14]} 17. Neg5 {[%emt 0:03:00]} h6 $2 {[%emt 0:05:35][%mdl 8192] [#] Black cannot hold the game after this.} (17... Bxg5 $11 {and Black has nothing to worry.} 18. Bxg5 Rf8) 18. Nxe6 $1 $18 {[%emt 0:02:26][%mdl 576] Deflection} fxe6 {[%emt 0:04:20]} (18... Qd7 19. Nxd8) 19. Qxg6 {[%emt 0:00:05]} Be8 {[%emt 0:03:19]} 20. Qxe6+ {[%emt 0:02:46]} Bf7 {[%emt 0:01:09] [#]} (20... Kh8 $142 21. Bxh6 Qd7 22. Qxd7 Bxd7) 21. Qxf7+ $3 {[%emt 0:02:27][%mdl 576] Remove Defender, Clearance.   Weighted Error Value: White=0.12 (very precise) /Black=0.63} 1-0

[Event "Lliga Catalana DH 2023"]
[Site "Catalonia"]
[Date "2023.02.11"]
[Round "4.10"]
[White "Mas Mestres, Jordi"]
[Black "Ano Pla, Gerard"]
[Result "0-1"]
[ECO "B33"]
[WhiteElo "1818"]
[BlackElo "2190"]
[Annotator "TA"]
[PlyCount "93"]
[EventDate "2023.01.24"]
[EventType "team-tourn"]
[EventCountry "ESP"]
[SourceTitle "playchess.com"]
[Source "ChessBase"]
[SourceQuality "1"]
[TimeControl "40/5400+30:1800+30"]

{[%evp 21,93,30,30,21,18,-162,-167,-224,-218,-220,-156,-196,-189,-172,-174,-173,-189,-150,-110,-98,-39,-105,-90,-70,-62,-79,-65,-83,-79,-86,-32,-24,0,0,16,16,51,20,30,0,0,0,5,8,19,19,78,33,55,84,92,0,43,0,0,-10,0,-149,-148,-155,-149,-156,-141,-199,-177,-246,-233,-438,-316,-312,-327,-293,-286,-29997]} 1. e4 c5 2. Nf3 Nc6 3. d4 cxd4 4. Nxd4 Nf6 5. Nc3 e5 6. Ndb5 d6 7. Bg5 a6 8. Na3 b5 9. Bxf6 gxf6 10. Nd5 Bg7 11. g3 Ne7 12. Nxe7 {B33: Sicilian: Pelikan and Sveshnikov Variations.} Qxe7 {[#]} 13. Qd5 $146 (13. Bg2 $11) ({Predecessor:} 13. Bg2 d5 14. exd5 Qb4+ 15. c3 Qxb2 16. Nc2 Qxc3+ 17. Kf1 Bg4 18. Qxg4 Qxc2 19. Qxg7 Ke7 20. d6+ Ke6 21. Bxa8 Rxa8 22. Qg4+ f5 23. Qf3 Rc8 24. Qb3+ {1-0 Sjugirov,S (2663)-Paravyan,D (2647) Titled Arena 2nd Jan blitz 2021}) 13... Bb7 $19 14. Qd3 (14. Qb3 {is a better defense.}) 14... f5 15. Bg2 Rd8 16. O-O fxe4 17. Bxe4 d5 18. Bg2 e4 19. Qb3 O-O {Black is more active.} 20. c3 Qc5 (20... d4 $17 {White must now prevent ...Bd5.} 21. cxd4 Bxd4) 21. Rad1 (21. Nc2 $15) 21... Kh8 22. Nc2 f5 23. Nd4 Bc8 {Prevents Ne6.} 24. Ne2 Be5 25. Kh1 Be6 (25... f4 $17 {Threatens to win with ...f3.} 26. gxf4 Bxf4 27. Nxf4 Rxf4) 26. Nd4 $15 Bxd4 27. Rxd4 Rd6 28. Qd1 a5 29. Qd2 (29. f3 $5 {[%cal Rf3e4]} Rd7 30. g4 $14) 29... Rb6 30. b4 axb4 31. Rxb4 Rc8 32. Rc1 Rbc6 {[%cal Oc5b4] [#] aiming for ...Qxb4!} 33. Bf1 Rb6 (33... Qxb4 $2 34. cxb4 Rxc1 35. Kg2 $18) (33... e3 $1 $11 34. Qxe3 Qxe3 35. fxe3 Rxc3 36. Rxc3 Rxc3) 34. Qf4 {[%cal Ob4b5] Hoping for Rxb5!} (34. Kg1 {is interesting.} Rbb8 35. Qh6 Bd7 36. Rd1) 34... Qd6 35. Qe3 ({Don't play} 35. Bxb5 d4 36. Qg5 Bd5 $15) (35. Rxb5 Qxf4 36. gxf4 Rxb5 37. Bxb5 d4 $17) 35... Qc5 {[#]} 36. Qf4 (36. a4 $1 $16) 36... Qc7 37. Qe3 ({But not} 37. Bxb5 Qxf4 38. gxf4 Bf7 $11) (37. Qxc7 {simplifies} Rxc7 38. a4 d4 39. Rxd4 bxa4 40. Rxa4 Kg7 41. c4) 37... Rc6 38. Qd4+ Qg7 {...Qxd4 would be deadly.} 39. Qxg7+ (39. Qd2 $11 {remains equal.}) 39... Kxg7 $17 40. Bxb5 Rxc3 41. Rxc3 Rxc3 $11 {[%mdl 4096] Endgame KRB-KRB} 42. a4 (42. Kg1 $17) 42... Ra3 43. Bc6 (43. Ba6 {keeps fighting.}) 43... Kf6 $19 44. Kg2 $2 (44. Bb7 {was called for.}) 44... Ke5 45. Rb5 {Black has a decisive advantage.} f4 ({Not} 45... Rxa4 46. Rxd5+ Bxd5 47. Bxa4 $11) 46. gxf4+ Kxf4 {( -> ...Bh3+)} 47. Bxd5 $2 {Weighted Error Value: White=0.39/Black=0.20 (precise)} (47. h3 $19) 0-1